Workbook

Sheet 1
A1: Школа | B1: МБОУ "СОШ №9 г.Азнакаево" | E1: Отд./корп | H1: День | I1: 2024-06-18
A3: Прием пищи | B3: Раздел | C3: № рец. | D3: Блюдо | E3: Выход, г | F3: Калорийность | G3: Белки | H3: Жиры | I3: Углеводы
A4: Завтрак | D4: Бутерброд с маслом | E4: 30/10 | F4: 144.60 | G4: 2.33 | H4: 8.12 | I4: 15.55
D5: Каша рисовая молочная с маслом сливочным | E5: 180/5 | F5: 237.20 | G5: 8.30 | H5: 6.87 | I5: 28.61
D6: Чай с молоком ,с сахаром | E6: 150/40/10 | F6: 63.70 | G6: 1.46 | H6: 1.08 | I6: 11.96
D7: Фрукты свежие (Яблоки) | E7: 120 | F7: 56.40 | G7: 0.48 | H7: 0.48 | I7: 11.76
D8: Батон высший сорт | E8: 30 | F8: 78.60 | G8: 2.25 | H8: 0.87 | I8: 15.42
D9: Итого: | E9: 575 | F9: =SUM(F4:F8) -> 580.50 | G9: =SUM(G4:G8) -> 14.82 | H9: =SUM(H4:H8) -> 17.42 | I9: 83.30
A10: Завтрак 2 | D10: Молоко кипяченное | E10: 200 | F10: 107.00 | G10: 5.80 | H10: 5.00 | I10: 9.60
D11: Итого: | E11: 200 | F11: =SUM(F10:F10) -> 107.00 | G11: 5.80 | H11: 5.00 | I11: 9.60
D12: Итого за завтрак: | E12: =E9+E11 -> 775 | F12: =F9+F11 -> 687.50 | G12: =G9+G11 -> 20.62 | H12: =H9+H11 -> 22.42 | I12: =I9+I11 -> 92.90
A13: Обед | D13: Помидоры свежие порционно | E13: 60 | F13: 14.40 | G13: 0.66 | H13: 0.12 | I13: 2.28
D14: Суп картофельный с горохом на курином бульоне, с мясом птицы | E14: 200/10 | F14: 164.80 | G14: 6.73 | H14: 9.07 | I14: 19.26
D15: Рыба запеченная с луком | E15: 80/10 | F15: 158.28 | G15: 11.25 | H15: 10.78 | I15: 4.02
D16: Картофельное пюре | E16: 180 | F16: 164.70 | G16: 3.68 | H16: 5.76 | I16: 24.53
D17: Компот из сухофруктов | E17: 200 | F17: 92.80 | G17: 0.66 | H17: 0.09 | I17: 22.03
D18: Хлеб ржаной | E18: 50 | F18: 99.00 | G18: 3.30 | H18: 0.60 | I18: 19.80
D19: Хлеб пшеничный | E19: 40 | F19: 94.00 | G19: 3.04 | H19: 0.32 | I19: 19.68
D20: Итого: | E20: 830 | F20: =SUM(F13:F19) -> 787.98 | G20: =SUM(G13:G19) -> 29.32 | H20: =SUM(H13:H19) -> 26.75 | I20: 111.60
D21: Вода питьевая ПЭТ | E21: 500 | F21: 0.00 | G21: 0.00 | H21: 0.00 | I21: 0.00
D22: ВСЕГО: | E22: =E9+E11+E20+E21 -> 2105.00 | F22: =F9+F11+F20+F21 -> 1475.48 | G22: =G9+G11+G20+G21 -> 49.94 | H22: =H9+H11+H20+H21 -> 49.16 | I22: =I9+I11+I20+I21 -> 204.50
